Workbook

Sheet Нед 1
B3: ПРИМЕРНОЕ ДВУХНЕДЕЛЬНОЕ МЕНЮ ДЛЯ ОБУЧАЮЩИХСЯ В ОБЩЕОБРАЗОВАТЕЛЬНЫХ ОРГАНИЗАЦИЯХ С 5-11 КЛАССЫ
B5: Наименование блюд | G5: Выход,г | H5: Белки, г | I5: Жиры, г | J5: Углеводы, г | K5: Калорийность, ккал | L5: Витамин B1, мг | M5: Витамин С, мг | N5: Витамин А, мг | O5: Витамин Е, мг | P5: Ca, мг | Q5: P, мг | R5: Mg, мг | S5: Fe, мг
B6: 1-ая неделя
B8: 1 день
A9: № 62 Сбор.рец. На прод-ию для обуч. Во всех образ.учреж-Дели 2017 | B9: САЛАТ ИЗ МОРКОВИ С САХАРОМ | G9: 100 | H9: 1.23 | I9: 0.09 | J9: 11.48 | K9: 81.70 | L9: 0.06 | M9: 3.36 | O9: 1.34 | P9: 25.76 | Q9: 52.77 | R9: 36.05 | S9: 0.66
A10: № 266 Сбор.рец. На прод-ию для обуч. Во всех образ.учреж-Дели 2017 | B10: БИФШТЕКС РУБЛЕНЫЙ | G10: 100 | H10: 19.15 | I10: 23.70 | J10: 0.00 | K10: 290.56 | L10: 0.06 | M10: 0.00 | N10: 0.00 | O10: 0.45 | P10: 13.77 | Q10: 171.28 | R10: 20.00 | S10: 2.79
A11: № 303 Сбор.рец. На прод-ию для обуч. Во всех образ.учреж-Дели 2017 | B11: КАША ВЯЗКАЯ (ГРЕЧНЕВАЯ) | G11: 180 | H11: 5.50 | I11: 6.00 | J11: 24.63 | K11: 174.60 | L11: 0.14 | M11: - | O11: 0.41 | P11: 10.13 | Q11: 130.64 | R11: 86.44 | S11: 2.91
A12: № 378 Сбор.рец. На прод-ию для обуч. Во всех образ.учреж-Дели 2017 | B12: ЧАЙ С МОЛОКОМ | G12: 150/50/15 | H12: 1.52 | I12: 1.35 | J12: 15.90 | K12: 81.00 | L12: 0.04 | M12: 1.33 | N12: 10.00 | O12: - | P12: 126.60 | Q12: 92.80 | R12: 15.40 | S12: 0.41
A13: табл 6 стр 134,Хим. Состав и калорийность российских продуктов питания Дели + 2012 | B13: Хлеб белый | G13: 30 | H13: 2.28 | I13: 0.24 | J13: 14.76 | K13: 70.50 | L13: 0.03 | O13: 0.33 | P13: 6.00 | Q13: 19.50 | R13: 4.20 | S13: 0.33
A14: табл 6 стр 144,Хим. Состав и калорийность российских продуктов питания Дели + 2012 | B14: Хлеб сельский | G14: 20 | H14: 1.00 | I14: 0.20 | J14: 9.00 | K14: 44.00 | L14: 0.01 | O14: 0.11 | P14: 2.76 | Q14: 12.72 | R14: 3.00 | S14: 0.37
B15: Итого: | G15: 645 | H15: =SUM(H9:H14) -> 30.68 | I15: =SUM(I9:I14) -> 31.58 | J15: 75.77 | K15: 742.36 | L15: 0.34 | M15: 4.69 | N15: 10.00 | O15: 2.64 | P15: 185.02 | Q15: 479.71 | R15: 165.09 | S15: 7.47
B17: 2 день
A18: №45 Сбор.рец. На прод-ию для обуч. Во всех образ.учреж-Дели 2017 | B18: САЛАТ ИЗ БЕЛОКОЧАННОЙ КАПУСТЫ | G18: 100 | H18: 1.31 | I18: 3.25 | J18: 6.47 | K18: 60.40 | L18: 0.02 | M18: 17.10 | N18: - | O18: 8.39 | P18: 24.97 | Q18: 28.31 | R18: 15.09 | S18: 0.47
A19: № 289 Сбор.рец. На прод-ию для обуч. Во всех образ.учреж-Дели 2017 | B19: РАГУ ИЗ ПТИЦЫ | G19: 50/200 | H19: 14.170 | I19: 12.960 | J19: 24.320 | K19: 270.80 | L19: 0.14 | M19: 18.72 | N19: 33.60 | O19: 3.11 | P19: 34.04 | Q19: 178.06 | R19: 51.60 | S19: 2.39
A20: № 382 Сбор.рец. На прод-ию для обуч. Во всех образ.учреж-Дели 2017 | B20: КАКАО С МОЛОКОМ | G20: 200 | H20: 4.08 | I20: 3.54 | J20: 17.58 | K20: 118.60 | L20: 0.06 | M20: 1.59 | N20: 24.40 | P20: 152.22 | Q20: 124.56 | R20: 21.34 | S20: 0.48
A21: табл 6 стр 134,Хим. Состав и калорийность российских продуктов питания Дели + 2012 | B21: Хлеб белый | G21: 30 | H21: 2.28 | I21: 0.24 | J21: 14.76 | K21: 70.50 | L21: 0.03 | O21: 0.33 | P21: 6.00 | Q21: 19.50 | R21: 4.20 | S21: 0.33
A22: табл 6 стр 144,Хим. Состав и калорийность российских продуктов питания Дели + 2012 | B22: Хлеб сельский | G22: 20 | H22: 1.00 | I22: 0.20 | J22: 9.00 | K22: 44.00 | L22: 0.01 | O22: 0.11 | P22: 2.76 | Q22: 12.72 | R22: 3.00 | S22: 0.37
B23: Итого: | G23: 600 | H23: =SUM(H18:H22) -> 22.84 | I23: =SUM(I18:I22) -> 20.19 | J23: 72.13 | K23: 564.30 | L23: 0.27 | M23: 37.41 | N23: 58.00 | O23: 11.94 | P23: 219.99 | Q23: 363.15 | R23: 95.23 | S23: 4.04
B25: 3 день
A26: № 52 Сбор.рец. На прод-ию для обуч. Во всех образ.учреж-Дели 2017 | B26: САЛАТ ИЗ СВЕКЛЫ ОТВАРНОЙ | G26: 100 | H26: 1.408 | I26: 6.010 | J26: 8.260 | K26: 93 | L26: 0.020 | M26: 6.650 | O26: 2.700 | P26: 35.460 | Q26: 40.630 | R26: 20.700 | S26: 1.320
A27: № 256 Сбор.рец. На прод-ию для обуч. Во всех образ.учреж-Дели 2017 | B27: МЯСО ТУШЕНОЕ | G27: 50/50 | H27: 15.200 | I27: 17.380 | J27: 2.560 | K27: 225 | L27: 0.030 | M27: 0.180 | O27: 2.610 | P27: 21.230 | Q27: 159.350 | R27: 23.060 | S27: 2.450
A28: № 203 Сбор.рец. На прод-ию для обуч. Во всех образ.учреж-Дели 2017 | B28: МАКАРОННЫЕ ИЗДЕЛИЯ ОТВАРНЫЕ С МАСЛОМ | G28: 180/5 | H28: 6.830 | I28: 4.430 | J28: 38.370 | K28: 220.56 | L28: 0.068 | M28: - | N28: 20.000 | O28: 0.980 | P28: 14.630 | Q28: 46.100 | R28: 10.340 | S28: 1.030
A29: № 377 Сбор.рец. На прод-ию для обуч. Во всех образ.учреж-Дели 2017 | B29: ЧАЙ С САХАРОМ ,С ЛИМОНОМ | G29: 200/15/7 | H29: 0.130 | I29: 0.020 | J29: 15.200 | K29: 62 | L29: 0.003 | M29: 2.830 | O29: 0.010 | P29: 14.200 | Q29: 4.400 | R29: 2.400 | S29: 0.360
A30: табл 6 стр 134,Хим. Состав и калорийность российских продуктов питания Дели + 2012 | B30: Хлеб белый | G30: 30 | H30: 2.28 | I30: 0.24 | J30: 14.76 | K30: 70.50 | L30: 0.03 | O30: 0.33 | P30: 6.00 | Q30: 19.50 | R30: 4.20 | S30: 0.33
A31: табл 6 стр 144,Хим. Состав и калорийность российских продуктов питания Дели + 2012 | B31: Хлеб сельский | G31: 20 | H31: 1.00 | I31: 0.20 | J31: 9.00 | K31: 44.00 | L31: 0.01 | O31: 0.11 | P31: 2.76 | Q31: 12.72 | R31: 3.00 | S31: 0.37
B32: Итого: | G32: 657 | H32: =SUM(H26:H31) -> 26.85 | I32: =SUM(I26:I31) -> 28.28 | J32: 88.15 | K32: 714.86 | L32: 0.17 | M32: 9.66 | N32: 20.00 | O32: 6.74 | P32: 94.28 | Q32: 282.70 | R32: 63.70 | S32: 5.86
B34: 4 день
A35: № 56 Сбор.рец. На прод-ию для обуч. Во всех образ.учреж-Дели 2017 | B35: САЛАТ ОВОЩНОЙ С ЯБЛОКАМИ | G35: 100 | H35: 1.16 | I35: 0.19 | J35: 7.20 | K35: 35.10 | L35: 0.03 | M35: 15.52 | N35: - | O35: 0.18 | P35: 33.14 | Q35: 29.02 | R35: 17.28 | S35: 1.28
A36: № 295 Сбор.рец. На прод-ию для обуч. Во всех образ.учреж-Дели 2017 | B36: КОТЛЕТЫ РУБЛЕННЫЕ ИЗ БРОЙЛЕР-ЦЫПЛЯТ | G36: 100 | H36: 15.22 | I36: 22.15 | J36: 15.33 | K36: 322.00 | L36: 0.10 | M36: 1.04 | N36: 51.40 | O36: 2.79 | P36: 68.34 | Q36: 106.16 | R36: 23.96 | S36: 1.40
A37: № 312 Сбор.рец. На прод-ию для обуч. Во всех образ.учреж-Дели -2017 | B37: ПЮРЕ КАРТОФЕЛЬНОЕ | G37: 180 | H37: 3.68 | I37: 5.76 | J37: 24.53 | K37: 164.70 | L37: 0.16 | M37: 21.79 | O37: 0.22 | P37: 44.37 | Q37: 103.90 | R37: 33.30 | S37: 1.21
A38: № 376 Сбор.рец. На прод-ию для обуч. Во всех образ.учреж-Дели 2017 | B38: ЧАЙ С САХАРОМ | G38: 200/15 | H38: 0.07 | I38: 0.02 | J38: 15.000 | K38: 60 | L38: - | M38: 0.03 | N38: - | O38: - | P38: 11.100 | Q38: 2.8 | R38: 1.4 | S38: 0.280
A39: табл 6 стр 134,Хим. Состав и калорийность российских продуктов питания Дели + 2012 | B39: Хлеб белый | G39: 30 | H39: 2.28 | I39: 0.24 | J39: 14.76 | K39: 70.50 | L39: 0.03 | O39: 0.33 | P39: 6.00 | Q39: 19.50 | R39: 4.20 | S39: 0.33
A40: табл 6 стр 144,Хим. Состав и калорийность российских продуктов питания Дели + 2012 | B40: Хлеб сельский | G40: 20 | H40: 1.00 | I40: 0.20 | J40: 9.00 | K40: 44.00 | L40: 0.01 | O40: 0.11 | P40: 2.76 | Q40: 12.72 | R40: 3.00 | S40: 0.37
B41: Итого: | G41: 645 | H41: =SUM(H35:H40) -> 23.41 | I41: =SUM(I35:I40) -> 28.56 | J41: 85.82 | K41: 696.30 | L41: 0.34 | M41: 38.38 | N41: 51.40 | O41: 3.63 | P41: 165.71 | Q41: 274.10 | R41: 83.14 | S41: 4.87
B43: 5 день
A44: № 59 Сбор.рец. На прод-ию для обуч. Во всех образ.учреж-Дели 2017 | B44: САЛАТ ИЗ МОРКОВИ С ЯБЛОКАМИ | G44: 100 | H44: 1.06 | I44: 0.17 | J44: 8.52 | K44: 39.90 | L44: 0.05 | M44: 4.38 | N44: - | O44: 0.35 | P44: 23.99 | Q44: 44.53 | R44: 30.39 | S44: 1.07
A45: № 268 Сбор.рец. На прод-ию для обуч. Во всех образ.учреж-Дели 2017 | B45: КОТЛЕТЫ ИЗ ГОВЯДИНЫ | G45: 100 | H45: 15.76 | I45: 15.29 | J45: 13.09 | K45: 256.00 | L45: 0.06 | N45: - | O45: 3.45 | P45: 10.42 | Q45: 166.76 | R45: 30.60 | S45: 2.68
A46: № 304 Сбор.рец. На прод-ию для обуч. Во всех образ.учреж-Дели 2017 | B46: РИС ОТВАРНОЙ | G46: 180 | H46: 4.380 | I46: 6.450 | J46: 44.020 | K46: 251.6 | L46: 0.030 | M46: - | O46: 0.340 | P46: 1.640 | Q46: 73.130 | R46: 19.600 | S46: 0.630
A47: № 378 Сбор.рец. На прод-ию для обуч. Во всех образ.учреж-Дели 2017 | B47: ЧАЙ С МОЛОКОМ | G47: 150/50/15 | H47: 1.52 | I47: 1.35 | J47: 15.90 | K47: 81.00 | L47: 0.04 | M47: 1.33 | N47: 10.00 | O47: - | P47: 126.60 | Q47: 92.80 | R47: 15.40 | S47: 0.41
A48: табл 6 стр 134,Хим. Состав и калорийность российских продуктов питания Дели + 2012 | B48: Хлеб белый | G48: 30 | H48: 2.28 | I48: 0.24 | J48: 14.76 | K48: 70.50 | L48: 0.03 | O48: 0.33 | P48: 6.00 | Q48: 19.50 | R48: 4.20 | S48: 0.33
A49: табл 6 стр 144,Хим. Состав и калорийность российских продуктов питания Дели + 2012 | B49: Хлеб сельский | G49: 20 | H49: 1.00 | I49: 0.20 | J49: 9.00 | K49: 44.00 | L49: 0.01 | O49: 0.11 | P49: 2.76 | Q49: 12.72 | R49: 3.00 | S49: 0.37
B50: Итого: | G50: 645 | H50: =SUM(H44:H49) -> 26.00 | I50: =SUM(I44:I49) -> 23.70 | J50: 105.29 | K50: 743.04 | L50: 0.23 | M50: 5.71 | N50: 10.00 | O50: 4.58 | P50: 171.41 | Q50: 409.44 | R50: 103.19 | S50: 5.49
B52: 6 день
A53: № 47 Сбор.рец. На прод-ию для обуч. Во всех образ.учреж-Дели 2017 | B53: САЛАТ ИЗ КВАШЕНОЙ КАПУСТЫ | G53: 100 | H53: 1.70 | I53: 5.00 | J53: 8.46 | K53: 85.70 | L53: 0.02 | M53: 19.81 | N53: - | O53: 1.54 | P53: 52.24 | Q53: 33.95 | R53: 16.01 | S53: 0.67
A54: № 203 Сбор.рец. На прод-ию для обуч. Во всех образ.учреж-Дели 2017 | B54: КУРИЦА ЗАПЕЧЕННАЯ | G54: 100 | H54: 24.18 | I54: 17.09 | K54: 250.00 | L54: 0.10 | M54: 2.84 | N54: 66.80 | O54: 1.83 | P54: 49.30 | Q54: 175.06 | R54: 24.92 | S54: 1.72
A55: № 203 Сбор.рец. На прод-ию для обуч. Во всех образ.учреж-Дели 2017 | B55: МАКАРОННЫЕ ИЗДЕЛИЯ (спагетти) ОТВАРНЫЕ С МАСЛОМ СЛИВОЧНЫМ | G55: 180/5 | H55: 6.83 | I55: 4.43 | J55: 38.37 | K55: 220.56 | L55: 0.07 | M55: - | N55: 20.00 | O55: 0.98 | P55: 14.63 | Q55: 46.10 | R55: 10.34 | S55: 1.03
A56: № 376 Сбор.рец. На прод-ию для обуч. Во всех образ.учреж-Дели 2017 | B56: Чай с сахаром с шиповником | G56: 200/15/10 | H56: 0.41 | I56: 0.34 | J56: 19.830 | K56: 88.4 | L56: 0.007 | M56: 100.03 | N56: - | O56: 0.38 | P56: 17.100 | Q56: 4.5 | R56: 3.1 | S56: 0.580
A57: табл 6 стр 134,Хим. Состав и калорийность российских продуктов питания Дели + 2012 | B57: Хлеб белый | G57: 30 | H57: 2.28 | I57: 0.24 | J57: 14.76 | K57: 70.50 | L57: 0.03 | O57: 0.33 | P57: 6.00 | Q57: 19.50 | R57: 4.20 | S57: 0.33
A58: табл 6 стр 144,Хим. Состав и калорийность российских продуктов питания Дели + 2012 | B58: Хлеб сельский | G58: 20 | H58: 1.00 | I58: 0.20 | J58: 9.00 | K58: 44.00 | L58: 0.01 | O58: 0.11 | P58: 2.76 | Q58: 12.72 | R58: 3.00 | S58: 0.37
B59: Итого: | G59: 660 | H59: =SUM(H53:H58) -> 36.40 | I59: =SUM(I53:I58) -> 27.30 | J59: 90.42 | K59: 759.16 | L59: 0.24 | M59: 122.68 | N59: 86.80 | O59: 5.17 | P59: 142.03 | Q59: 291.83 | R59: 61.57 | S59: 4.70

Sheet Нед 2
B1: Министерство образования и науки Республики Татарстан
B2: ПРИМЕРНОЕ ДВУХНЕДЕЛЬНОЕ МЕНЮ ДЛЯ ОБУЧАЮЩИХСЯ В ОБЩЕОБРАЗОВАТЕЛЬНЫХ ОРГАНИЗАЦИЯХ С 5-11 КЛАССЫ
B3: ЗИМНИЙ СЕЗОН
A4: № РЕЦЕПТУР | B4: Наименование блюд | G4: Выход,г | H4: Белки, г | I4: Жиры, г | J4: Углеводы, г | K4: Калорийность, ккал | L4: Витамин B1, мг | M4: Витамин С, мг | N4: Витамин А, мг | O4: Витамин Е, мг | P4: Ca, мг | Q4: P, мг | R4: Mg, мг | S4: Fe, мг
B5: 2-ая неделя
B7: 1 день
A8: №45 Сбор.рец. На прод-ию для обуч. Во всех образ.учреж-Дели 2017 | B8: САЛАТ ИЗ БЕЛОКОЧАННОЙ КАПУСТЫ | G8: 100 | H8: 1.31 | I8: 3.25 | J8: 6.47 | K8: 60.40 | L8: 0.02 | M8: 17.10 | N8: - | O8: 8.39 | P8: 24.97 | Q8: 28.31 | R8: 15.09 | S8: 0.47
A9: № 280 Сбор.рец. На прод-ию для обуч. Во всех образ.учреж-Дели -2017 | B9: ФРИКАДЕЛЬКИ МЯСНЫЕ В СМЕТАННО-ТОМАТНОМ СОУСЕ | G9: 55/50 | H9: 8.50 | I9: 11.21 | J9: 10.61 | K9: 180.00 | L9: 0.04 | M9: 0.27 | N9: 16.31 | O9: 2.67 | P9: 24.45 | Q9: 79.59 | R9: 14.19 | S9: 5.29
A10: № 171 Сбор.рец. На прод-ию для обуч. Во всех образ.учреж-Дели 2017 | B10: КАША РАССЫПЧАТАЯ (ГРЕЧНЕВАЯ) | G10: 180 | H10: 10.52 | I10: 2.76 | J10: 47.67 | K10: 256.80 | L10: 0.25 | M10: - | O10: 0.47 | P10: 28.79 | Q10: 248.82 | R10: 168.62 | S10: 5.65
A11: № 376 Сбор.рец. На прод-ию для обуч. Во всех образ.учреж-Дели 2017 | B11: ЧАЙ С САХАРОМ | G11: 200/15 | H11: 0.07 | I11: 0.02 | J11: 15.000 | K11: 60 | L11: - | M11: 0.03 | N11: - | O11: - | P11: 11.100 | Q11: 2.8 | R11: 1.4 | S11: 0.280
A12: табл 6 стр 134,Хим. Состав и калорийность российских продуктов питания Дели + 2012 | B12: Хлеб белый | G12: 30 | H12: 2.28 | I12: 0.24 | J12: 14.76 | K12: 70.50 | L12: 0.03 | O12: 0.33 | P12: 6.00 | Q12: 19.50 | R12: 4.20 | S12: 0.33
A13: табл 6 стр 144,Хим. Состав и калорийность российских продуктов питания Дели + 2012 | B13: Хлеб сельский | G13: 20 | H13: 1.00 | I13: 0.20 | J13: 9.00 | K13: 44.00 | L13: 0.01 | O13: 0.11 | P13: 2.76 | Q13: 12.72 | R13: 3.00 | S13: 0.37
B14: Итого: | G14: 650 | H14: =SUM(H8:H13) -> 23.68 | I14: =SUM(I8:I13) -> 17.68 | J14: 103.51 | K14: 671.70 | L14: 0.36 | M14: 17.40 | N14: 16.31 | O14: 11.97 | P14: 98.07 | Q14: 391.74 | R14: 206.50 | S14: 12.39
B16: 2 день
A17: № 52 Сбор.рец. На прод-ию для обуч. Во всех образ.учреж-Дели 2017 | B17: САЛАТ ИЗ СВЕКЛЫ ОТВАРНОЙ | G17: 100 | H17: 1.408 | I17: 6.010 | J17: 8.260 | K17: 93 | L17: 0.020 | M17: 6.650 | O17: 2.700 | P17: 35.460 | Q17: 40.630 | R17: 20.700 | S17: 1.320
A18: № 291 Сбор.рец. На прод-ию для обуч. Во всех образ.учреж-Дели -2017 | B18: ПЛОВ ИЗ ПТИЦЫ | G18: 50/200 | H18: 16.47 | I18: 6.62 | J18: 54.68 | K18: 344.66 | L18: 0.20 | M18: 9.80 | N18: 30.00 | O18: 0.67 | P18: 34.64 | Q18: 212.50 | R18: 70.90 | S18: 1.90
A19: № 377 Сбор.рец. На прод-ию для обуч. Во всех образ.учреж-Дели 2017 | B19: ЧАЙ С САХАРОМ ,С ЛИМОНОМ | G19: 200/15/7 | H19: 0.130 | I19: 0.020 | J19: 15.200 | K19: 62 | L19: 0.003 | M19: 2.830 | O19: 0.010 | P19: 14.200 | Q19: 4.400 | R19: 2.400 | S19: 0.360
A20: табл 6 стр 134,Хим. Состав и калорийность российских продуктов питания Дели + 2012 | B20: Хлеб белый | G20: 30 | H20: 2.28 | I20: 0.24 | J20: 14.76 | K20: 70.50 | L20: 0.03 | O20: 0.33 | P20: 6.00 | Q20: 19.50 | R20: 4.20 | S20: 0.33
A21: табл 6 стр 144,Хим. Состав и калорийность российских продуктов питания Дели + 2012 | B21: Хлеб сельский | G21: 20 | H21: 1.00 | I21: 0.20 | J21: 9.00 | K21: 44.00 | L21: 0.01 | O21: 0.11 | P21: 2.76 | Q21: 12.72 | R21: 3.00 | S21: 0.37
B22: Итого: | G22: 622 | H22: =SUM(H17:H21) -> 21.29 | I22: =SUM(I17:I21) -> 13.09 | J22: 101.90 | K22: 613.96 | L22: 0.27 | M22: 19.28 | N22: 30.00 | O22: 3.82 | P22: 93.06 | Q22: 289.75 | R22: 101.20 | S22: 4.28
B24: 3 день
A25: № 47 Сбор.рец. На прод-ию для обуч. Во всех образ.учреж-Дели 2017 | B25: САЛАТ ИЗ КВАШЕНОЙ КАПУСТЫ | G25: 100 | H25: 1.70 | I25: 5.00 | J25: 8.46 | K25: 85.70 | L25: 0.02 | M25: 19.81 | N25: - | O25: 1.54 | P25: 52.24 | Q25: 33.95 | R25: 16.01 | S25: 0.67
A26: № 234 Сбор.рец. На прод-ию для обуч. Во всех образ.учреж-Дели -2017 | B26: БИТОЧКИ РЫБНЫЕ С ЛУКОМ | G26: 80/20 | H26: 10.66 | I26: 8.92 | J26: 17.24 | K26: 192.60 | L26: 0.07 | M26: 2.06 | N26: 4.16 | O26: 4.82 | P26: 48.54 | Q26: 158.96 | R26: 36.61 | S26: 1.53
A27: № 312 Сбор.рец. На прод-ию для обуч. Во всех образ.учреж-Дели -2017 | B27: ПЮРЕ КАРТОФЕЛЬНОЕ | G27: 180 | H27: 3.68 | I27: 5.76 | J27: 24.53 | K27: 164.70 | L27: 0.16 | M27: 21.79 | O27: 0.22 | P27: 44.37 | Q27: 103.90 | R27: 33.30 | S27: 1.21
A28: № 379 Сбор.рец. На прод-ию для обуч. Во всех образ.учреж-Дели 2017 | B28: КОФЕЙНЫЙ НАПИТОК С МОЛОКОМ | G28: 200 | H28: 3.17 | I28: 2.68 | J28: 15.95 | K28: 100.60 | L28: 0.04 | M28: 1.30 | N28: 20.00 | P28: 125.78 | Q28: 90.00 | R28: 14.00 | S28: 0.13
A29: табл 6 стр 134,Хим. Состав и калорийность российских продуктов питания Дели + 2012 | B29: Хлеб белый | G29: 30 | H29: 2.28 | I29: 0.24 | J29: 14.76 | K29: 70.50 | L29: 0.03 | O29: 0.33 | P29: 6.00 | Q29: 19.50 | R29: 4.20 | S29: 0.33
A30: табл 6 стр 144,Хим. Состав и калорийность российских продуктов питания Дели + 2012 | B30: Хлеб сельский | G30: 20 | H30: 1.00 | I30: 0.20 | J30: 9.00 | K30: 44.00 | L30: 0.01 | O30: 0.11 | P30: 2.76 | Q30: 12.72 | R30: 3.00 | S30: 0.37
B31: Итого: | G31: 630 | H31: =SUM(H25:H30) -> 22.49 | I31: =SUM(I25:I30) -> 22.80 | J31: 89.94 | K31: 658.10 | L31: 0.35 | M31: 44.96 | N31: 24.16 | O31: 7.02 | P31: 279.69 | Q31: 419.03 | R31: 107.12 | S31: 4.25
B33: 4 день
A34: ТТК 301 Акт приготовления от 23.03.2020 | B34: САЛАТ ИЗ ФАСОЛИ ,ОГУРЦОВ СОЛЕНЫХ И КУКУРУЗЫ К/С | G34: 100 | H34: 11.92 | I34: 7.70 | J34: 27.10 | K34: 266.83 | L34: 0.45 | M34: 1.05 | O34: 3.47 | P34: 114.75 | Q34: 341.32 | R34: 120.20 | S34: 4.93
A35: № 243 Сбор.рец. На прод-ию для обуч. Во всех образ.учреж-Дели -2017 | B35: СОСИСКИ ОТВАРНЫЕ | G35: 100 | H35: 11.02 | I35: 23.86 | J35: 0.38 | K35: 262.00 | L35: 0.18 | M35: - | N35: - | O35: 0.39 | P35: 34.60 | Q35: 159.00 | R35: 20.00 | S35: 1.78
A36: № 203 Сбор.рец. На прод-ию для обуч. Во всех образ.учреж-Дели 2017 | B36: МАКАРОННЫЕ ИЗДЕЛИЯ (спагетти) ОТВАРНЫЕ С МАСЛОМ СЛИВОЧНЫМ | G36: 180/5 | H36: 6.83 | I36: 4.43 | J36: 38.37 | K36: 220.56 | L36: 0.07 | M36: - | N36: 20.00 | O36: 0.98 | P36: 14.63 | Q36: 46.10 | R36: 10.34 | S36: 1.03
A37: № 378 Сбор.рец. На прод-ию для обуч. Во всех образ.учреж-Дели 2017 | B37: ЧАЙ С МОЛОКОМ | G37: 150/50/15 | H37: 1.52 | I37: 1.35 | J37: 15.90 | K37: 81.00 | L37: 0.04 | M37: 1.33 | N37: 10.00 | O37: - | P37: 126.60 | Q37: 92.80 | R37: 15.40 | S37: 0.41
A38: табл 6 стр 134,Хим. Состав и калорийность российских продуктов питания Дели + 2012 | B38: Хлеб белый | G38: 30 | H38: 2.28 | I38: 0.24 | J38: 14.76 | K38: 70.50 | L38: 0.03 | O38: 0.33 | P38: 6.00 | Q38: 19.50 | R38: 4.20 | S38: 0.33
A39: табл 6 стр 144,Хим. Состав и калорийность российских продуктов питания Дели + 2012 | B39: Хлеб сельский | G39: 20 | H39: 1.00 | I39: 0.20 | J39: 9.00 | K39: 44.00 | L39: 0.01 | O39: 0.11 | P39: 2.76 | Q39: 12.72 | R39: 3.00 | S39: 0.37
B40: Итого: | G40: 650 | H40: =SUM(H34:H39) -> 34.57 | I40: =SUM(I34:I39) -> 37.78 | J40: 105.51 | K40: 944.89 | L40: 0.79 | M40: 2.38 | N40: 30.00 | O40: 5.28 | P40: 299.34 | Q40: 671.44 | R40: 173.14 | S40: 8.85
B42: 5 день
A43: № 73 Сбор.рец. На прод-ию для обуч. Во всех образ.учреж-Дели 2017 | B43: ИКРА КАБАЧКОВАЯ | G43: 100 | H43: 2.73 | I43: 7.19 | J43: 14.54 | K43: 133.80 | L43: 0.040 | M43: 4.68 | O43: 1.48 | P43: 90.93 | Q43: 55.80 | R43: 18.10 | S43: 0.74
A44: № 290 Сбор.рец. На прод-ию для обуч. Во всех образ.учреж-Дели -2017 | B44: ПТИЦА ТУШЕННАЯ В СМЕТАННО-ТОМАТНОМ СОУСЕ | G44: 50/50 | H44: 11.94 | I44: 10.12 | J44: 3.51 | K44: 153.00 | L44: 0.05 | M44: 2.09 | N44: 37.50 | O44: 0.98 | P44: 39.87 | Q44: 93.53 | R44: 15.10 | S44: 1.01
A45: № 304 Сбор.рец. На прод-ию для обуч. Во всех образ.учреж-Дели 2017 | B45: РИС ОТВАРНОЙ | G45: 180 | H45: 4.38 | I45: 6.45 | J45: 44.02 | K45: 251.64 | L45: 0.03 | M45: - | O45: 0.34 | P45: 1.64 | Q45: 73.13 | R45: 19.60 | S45: 0.63
A46: № 376 Сбор.рец. На прод-ию для обуч. Во всех образ.учреж-Дели 2017 | B46: ЧАЙ С САХАРОМ | G46: 200/15 | H46: 0.07 | I46: 0.02 | J46: 15.000 | K46: 60 | L46: - | M46: 0.03 | N46: - | O46: - | P46: 11.100 | Q46: 2.8 | R46: 1.4 | S46: 0.280
A47: табл 6 стр 134,Хим. Состав и калорийность российских продуктов питания Дели + 2012 | B47: Хлеб белый | G47: 30 | H47: 2.28 | I47: 0.24 | J47: 14.76 | K47: 70.50 | L47: 0.03 | O47: 0.33 | P47: 6.00 | Q47: 19.50 | R47: 4.20 | S47: 0.33
A48: табл 6 стр 144,Хим. Состав и калорийность российских продуктов питания Дели + 2012 | B48: Хлеб сельский | G48: 20 | H48: 1.00 | I48: 0.20 | J48: 9.00 | K48: 44.00 | L48: 0.01 | O48: 0.11 | P48: 2.76 | Q48: 12.72 | R48: 3.00 | S48: 0.37
B49: Итого: | G49: 645 | H49: =SUM(H43:H48) -> 22.40 | I49: =SUM(I43:I48) -> 24.22 | J49: 100.83 | K49: 712.94 | L49: 0.17 | M49: 6.80 | N49: 37.50 | O49: 3.24 | P49: 152.30 | Q49: 257.48 | R49: 61.40 | S49: 3.36
B51: 6 день
A52: № 56 Сбор.рец. На прод-ию для обуч. Во всех образ.учреж-Дели 2017 | B52: САЛАТ ОВОЩНОЙ С ЯБЛОКАМИ | G52: 100 | H52: 1.16 | I52: 0.19 | J52: 7.20 | K52: 35.10 | L52: 0.03 | M52: 15.52 | N52: - | O52: 0.18 | P52: 33.14 | Q52: 29.02 | R52: 17.28 | S52: 1.28
A53: ТТК | B53: КОТЛЕТЫ "АППЕТИТНЫЕ" В ТОМАТНОМ СОУСЕ | G53: 80/30 | H53: 8.15 | I53: 11.24 | J53: 7.53 | K53: 137.35 | L53: 0.06 | M53: 2.32 | N53: 20.08 | O53: 1.34 | P53: 19.82 | Q53: 137.79 | R53: 18.61 | S53: 1.73
A54: № 199 Сбор.рец. На прод-ию для обуч. Во всех образ.учреж-Дели 2017 | B54: ГОРОХОВОЕ ПЮРЕ | G54: 180 | H54: 16.29 | I54: 1.71 | J54: 41.92 | K54: 246.60 | L54: 0.59 | O54: 0.53 | P54: 111.49 | Q54: 252.99 | R54: 74.03 | S54: 5.62
A55: № 377 Сбор.рец. На прод-ию для обуч. Во всех образ.учреж-Дели 2017 | B55: ЧАЙ С САХАРОМ ,С ЛИМОНОМ | G55: 200/15/7 | H55: 0.130 | I55: 0.020 | J55: 15.200 | K55: 62 | L55: 0.003 | M55: 2.830 | O55: 0.010 | P55: 14.200 | Q55: 4.400 | R55: 2.400 | S55: 0.360
A56: табл 6 стр 134,Хим. Состав и калорийность российских продуктов питания Дели + 2012 | B56: Хлеб белый | G56: 30 | H56: 2.28 | I56: 0.24 | J56: 14.76 | K56: 70.50 | L56: 0.03 | O56: 0.33 | P56: 6.00 | Q56: 19.50 | R56: 4.20 | S56: 0.33
A57: табл 6 стр 144,Хим. Состав и калорийность российских продуктов питания Дели + 2012 | B57: Хлеб сельский | G57: 20 | H57: 1.00 | I57: 0.20 | J57: 9.00 | K57: 44.00 | L57: 0.01 | O57: 0.11 | P57: 2.76 | Q57: 12.72 | R57: 3.00 | S57: 0.37
B58: Итого: | G58: 662 | H58: =SUM(H52:H57) -> 29.01 | I58: =SUM(I52:I57) -> 13.60 | J58: 95.61 | K58: 595.55 | L58: 0.73 | M58: 20.67 | N58: 20.08 | O58: 2.50 | P58: 187.41 | Q58: 456.42 | R58: 119.52 | S58: 9.69
